fUSD/lending_fUSD_20250115
["ID","MTS","AMOUNT","RATE_DAILY","PERIOD"]
[348972434,1736904647291,-150.0,0.0001496,2]
[348972435,1736904647300,-150.0,0.00014961,2]
[348972436,1736904647309,-150.0,0.00014962,2]
[348972437,1736904647318,-150.0,0.00014962,2]
[348972438,1736904647328,-150.0,0.00014963,2]
[348972439,1736904647337,-201.12758526,0.00014964,2]
[348972440,1736904647347,-150.0,0.00014964,2]
[348972441,1736904647357,-150.0,0.00014965,2]
[348972442,1736904647366,-150.0,0.00014966,2]
[348972443,1736904647375,-150.0,0.00014968,2]
[348972444,1736904647385,-201.12758526,0.00014969,2]
[348972445,1736904647394,-150.0,0.0001497,2]
[348972446,1736904647404,-150.0,0.0001497,2]
[348972447,1736904647413,-201.12758526,0.00014972,2]
[348972448,1736904647423,-201.12758526,0.00014973,2]
[348972449,1736904647432,-150.0,0.00014976,2]
[348972450,1736904647442,-150.0,0.00014978,2]
[348972451,1736904647451,-150.0,0.00014978,2]
[348972452,1736904647461,-150.0,0.0001498,2]
[348972453,1736904647470,-500.0,0.0001498,2]
[348972454,1736904647481,-500.0,0.0001498,2]
[348972455,1736904647490,-500.0,0.0001498,2]
[348972456,1736904647499,-500.0,0.0001498,2]
[348972457,1736904647509,-500.0,0.0001498,2]
[348972458,1736904647518,-500.0,0.0001498,2]
[348972459,1736904647527,-897.19,0.0001498,2]
[348972460,1736904647537,-500.0,0.0001498,2]
[348972461,1736904647547,-500.0,0.0001498,2]
[348972462,1736904647556,-500.0,0.0001498,2]
[348972463,1736904647566,-1043.93,0.0001498,2]
[348972464,1736904647575,-500.0,0.0001498,2]
[348972465,1736904647584,-500.0,0.00014981,2]
[348972466,1736904647596,-500.0,0.00014981,2]
[348972467,1736904647605,-500.0,0.00014981,2]
[348972468,1736904647614,-500.0,0.00014981,2]
[348972469,1736904647623,-500.0,0.00014981,2]
[348972470,1736904647633,-500.0,0.00014981,2]
[348972471,1736904647643,-202.6877582,0.00014981,2]
[348972472,1736904647652,-575.28,0.00014981,2]
[348972473,1736904647661,-150.0,0.00014982,2]
[348972474,1736904647671,-150.0,0.00014982,2]
[348972475,1736904647681,-237.68615563,0.00014982,2]
[348972476,1736904647693,-1353.38,0.00014982,2]
[348972477,1736904647702,-500.0,0.00014982,2]
[348972478,1736904647712,-200.0,0.00014982,2]
[348972479,1736904647721,-150.0,0.00014985,2]
[348972480,1736904647732,-150.0,0.00014985,2]
[348972481,1736904647741,-150.0,0.00014986,2]
[348972482,1736904647751,-150.0,0.00014987,2]
[348972483,1736904647761,-150.0,0.0001499,2]
[348972484,1736904647772,-150.0,0.00014992,2]
[348972485,1736904647782,-617.1521384,0.00014993,2]
[348972486,1736904647792,-760.805138,0.00014993,2]
[348972487,1736904647801,-259.5785288,0.00014993,2]
[348972488,1736904647811,-150.0,0.00014994,2]
[348972489,1736904647820,-150.0,0.00014995,2]
[348972490,1736904647829,-150.0,0.00014995,2]
[348972491,1736904647838,-150.0,0.00014996,2]
[348972492,1736904647848,-201.12758526,0.00014998,2]
[348972493,1736904647857,-150.0,0.00014999,2]
[348972494,1736904647867,-999.0,0.00014999,2]
[348972495,1736904647876,-5603.57641666,0.00015,2]
[348972496,1736904647886,-1236.18022445,0.00015,2]
[348972497,1736904647904,-10282.0,0.00015,2]
[348972498,1736904647913,-650.0,0.00015,2]
[348972499,1736904647923,-1000.0,0.00015,2]
[348972500,1736904647933,-1000.0,0.00015,2]
[348972501,1736904647945,-1000.0,0.00015,2]
[348972502,1736904647954,-1000.0,0.00015,2]
[348972503,1736904647963,-1000.0,0.00015,2]
[348972504,1736904647972,-1000.0,0.00015,2]
[348972505,1736904647982,-1000.0,0.00015,2]
[348972506,1736904647991,-1000.0,0.00015,2]
[348972507,1736904648000,-1000.0,0.00015,2]
[348972508,1736904648009,-1000.0,0.00015,2]
[348972509,1736904648018,-3000.0,0.00015,2]
[348972510,1736904648027,-150.0,0.00015,20]
[348972511,1736904648037,-584.54173687,0.00015,2]
[348972512,1736904648050,-58.16926313,0.00015,2]
[348972513,1736904648059,-300.0,0.00015068,2]
[348972514,1736904648070,-258.60266103,0.00015072,2]
[348972515,1736904648081,-319.46194862,0.00015072,2]
[348972516,1736904648091,-296.86695732,0.000151,2]
[348972517,1736904648100,-799.83,0.00015107,2]
[348972518,1736904648110,-279.84150248,0.00015107,2]
[348972519,1736904648121,-220.15849752,0.00015107,2]
[348972520,1736904648130,-500.0,0.00015107,2]
[348972521,1736904648139,-150.0,0.00015136,2]
[348972522,1736904648148,-376.23212423,0.000152,20]
[348972523,1736904648160,-123.76787577,0.000152,20]
[348972524,1736904648169,-500.000001,0.00015201,2]
[348972525,1736904648178,-500.0,0.00015201,2]
[348972526,1736904648188,-500.0,0.00015201,2]
[348972527,1736904648200,-214.0225702,0.00015201,2]
[348972528,1736904648211,-285.9774298,0.00015201,2]
[348972529,1736904648221,-234.81181,0.00015202,2]
[348972530,1736904648230,-548.31,0.00015202,2]
[348972531,1736904648239,-500.0,0.00015202,2]
[348972532,1736904648248,-538.94,0.00015202,2]
[348972533,1736904648258,-500.0,0.00015202,2]
[348972534,1736904648267,-500.0,0.00015202,2]
[348972535,1736904648276,-257.73523375,0.00015202,2]
[348972536,1736904648285,-500.0,0.00015202,2]
[348972537,1736904648295,-500.0,0.00015202,2]
[348972538,1736904648304,-500.0,0.00015202,2]
[348972539,1736904648314,-69.22552645,0.00015202,2]
[348972540,1736904648358,-150.0,0.00014816,2]
[348972541,1736904648367,-150.0,0.00014817,2]
[348972542,1736904648376,-140.71799457,0.00014932,2]
[348972543,1736904648409,-150.0,0.00014736,2]
[348972544,1736904648419,-150.0,0.00014827,2]
[348972545,1736904648428,-150.0,0.00014836,2]
[348972546,1736904648437,-9.28200543,0.00014932,2]
[348972547,1736904648448,-150.0,0.00014989,2]
[348972548,1736904648457,-0.90808168,0.00015202,2]
[348972549,1736904648469,-429.86639187,0.00015202,2]
[348972550,1736904648478,-500.0,0.00015202,2]
[348972551,1736904648488,-933.89,0.00015202,2]
[348972552,1736904648498,-1057.27,0.00015202,2]
[348972553,1736904648507,-671.81,0.00015202,2]
[348972554,1736904648517,-500.0,0.00015203,2]
[348972555,1736904648527,-408.54009875,0.00015203,2]
[348972556,1736904648538,-91.45990125,0.00015203,2]
[348972557,1736904648546,-473.67500075,0.00015203,2]
[348972558,1736904656190,163.0,0.00018,30]
[348972562,1736905243921,178.93,0.0001961,120]
[348972563,1736905259117,179.0,0.0001961,120]
[348972577,1736905644766,1058.0,8.547e-05,2]
[348972578,1736905665928,1058.0,8.547e-05,2]
[348972580,1736905687245,1058.0,8.547e-05,2]
[348972581,1736905708295,1058.0,8.547e-05,2]
[348972582,1736905729832,1071.27194133,8.547e-05,2]
[348972593,1736905832471,-580.87891067,8.729e-05,2]
[348972594,1736905832485,-477.12108933,8.729e-05,2]
[348972595,1736905832496,-1508.49357055,9.189e-05,2]
[348972596,1736905832629,-1084.80642945,9.189e-05,2]
[348972597,1736905832640,-1058.0,9.189e-05,2]
[348972598,1736905832650,-1058.0,9.672e-05,2]
[348972599,1736905832660,-150.0,9.998e-05,2]
[348972600,1736905832671,-214.72423406,9.999e-05,2]
[348972601,1736905832681,-674.67,9.999e-05,2]
[348972602,1736905832693,-500.0,9.999e-05,2]
[348972603,1736905832704,-500.0,9.999e-05,2]
[348972604,1736905832715,-500.0,9.999e-05,2]
[348972605,1736905832725,-500.0,9.999e-05,2]
[348972606,1736905832735,-500.0,9.999e-05,2]
[348972607,1736905832746,-500.0,9.999e-05,2]
[348972608,1736905832757,-500.0,9.999e-05,2]
[348972609,1736905832767,-500.0,9.999e-05,2]
[348972610,1736905832777,-500.0,9.999e-05,2]
[348972611,1736905832788,-504.96061353,9.999e-05,2]
[348972612,1736905832798,-738.62,9.999e-05,2]
[348972613,1736905832810,-500.0,9.999e-05,2]
[348972614,1736905832819,-510.87492404,9.999e-05,2]
[348972615,1736905832832,-500.0,9.999e-05,2]
[348972616,1736905832844,-154.23,0.00010137,2]
[348972617,1736905832856,-628.0,0.00010137,2]
[348972618,1736905832868,-367.55410755,0.00010162,4]
[348972619,1736905832879,-1058.0,0.00010181,2]
[348972620,1736905832889,-674.67,0.00010273,2]
[348972621,1736905832901,-500.0,0.00010273,2]
[348972622,1736905832912,-738.62,0.00010273,2]
[348972623,1736905832922,-500.0,0.00010273,2]
[348972624,1736905832934,-500.0,0.00010273,2]
[348972625,1736905832944,-674.67,0.00010547,2]
[348972626,1736905832955,-254.70450272,0.00010547,2]
[348972627,1736905832965,-738.62,0.00010547,2]
[348972628,1736905832975,-500.0,0.00010547,2]
[348972629,1736905832985,-500.0,0.00010547,2]
[348972630,1736905832994,-1058.0,0.00010717,2]
[348972631,1736905833004,-674.67,0.00010821,2]
[348972632,1736905833015,-738.62,0.00010821,2]
[348972633,1736905833026,-500.0,0.00010821,2]
[348972634,1736905833035,-500.0,0.00010821,2]
[348972635,1736905833045,-999.0,0.00010958,2]
[348972636,1736905833055,-550.0,0.00011,2]
[348972637,1736905833064,-674.67,0.00011095,2]
[348972638,1736905833074,-738.62,0.00011095,2]
[348972639,1736905833085,-502.06653362,0.00011095,2]
[348972640,1736905833099,-500.0,0.00011095,2]
[348972642,1736905833109,-1058.0,0.00011281,2]
[348972644,1736905833120,-674.67,0.00011369,2]
[348972646,1736905833132,-738.62,0.00011369,2]
[348972648,1736905833144,-500.0,0.00011369,2]
[348972651,1736905833157,-158.53,0.00011424,2]
[348972652,1736905833167,-674.67,0.00011643,2]
[348972653,1736905833179,-738.62,0.00011643,2]
[348972654,1736905833189,-413.84254847,0.00011643,2]
[348972655,1736905833199,-500.0,0.000118,2]
[348972656,1736905833208,-1058.0,0.00011875,2]
[348972657,1736905833218,-674.67,0.00011917,2]
[348972658,1736905833227,-738.62,0.00011917,2]
[348972659,1736905833237,-674.67,0.00012191,2]
[348972660,1736905833247,-738.62,0.00012191,2]
[348972661,1736905833257,-263.25,0.00012329,2]
[348972662,1736905833268,-674.67,0.00012465,2]
[348972663,1736905833278,-738.62,0.00012465,2]
[348972664,1736905833290,-1058.0,0.00012469,2]
[348972665,1736905833301,-674.67,0.00012739,2]
[348972666,1736905833312,-738.62,0.00012739,2]
[348972667,1736905833322,-271.5754813,0.000128,2]
[348972668,1736905833331,-560.264,0.00012865,2]
[348972669,1736905833343,-508.34,0.00012963,2]
[348972670,1736905833353,-600.0,0.00013,2]
[348972671,1736905833363,-674.67,0.00013013,2]
[348972672,1736905833373,-738.62,0.00013013,2]
[348972673,1736905833383,-250.0,0.0001302,2]
[348972674,1736905833393,-194.61,0.00013024,2]
[348972675,1736905833403,-1792.17,0.00013041,2]
[348972676,1736905833413,-163.97,0.00013045,2]
[348972677,1736905833423,-1058.0,0.00013092,2]
[348972678,1736905833434,-250.0,0.000131,2]
[348972679,1736905833444,-999.0,0.0001315,4]
[348972680,1736905833454,-295.46,0.00013152,2]
[348972681,1736905833464,-674.67,0.00013287,2]
[348972682,1736905833474,-738.62,0.00013287,2]
[348972683,1736905833484,-1990.16,0.00013513,2]
[348972684,1736905833494,-2783.19,0.00013523,2]
[348972685,1736905833504,-250.0,0.00013553,2]
[348972686,1736905833514,-674.67,0.00013561,2]
[348972687,1736905833525,-738.62,0.00013561,2]
[348972688,1736905833535,-580.05765354,0.00013698,2]
[348972689,1736905833549,-500.0,0.00013699,2]
[348972690,1736905833559,-200.0,0.00013699,2]
[348972691,1736905833570,-1058.0,0.00013747,2]
[348972692,1736905833580,-500.0,0.000138,2]
[348972693,1736905833593,-674.67,0.00013835,2]
[348972694,1736905833604,-738.62,0.00013835,2]
[348972695,1736905833613,-166.21,0.00013893,2]
[348972696,1736905833623,-1900.0,0.00013972,2]
[348972697,1736905833634,-700.0,0.00013972,2]
[348972698,1736905833644,-674.67,0.00014109,2]
[348972699,1736905833654,-738.62,0.00014109,2]
[348972700,1736905833664,-158.53,0.00014113,2]
[348972701,1736905833675,-514.45697036,0.0001438,2]
[348972702,1736905833685,-500.0,0.0001438,2]
[348972703,1736905833695,-500.0,0.0001438,2]
[348972704,1736905833705,-500.0,0.0001438,2]
[348972705,1736905833716,-500.0,0.0001438,2]
[348972706,1736905833726,-500.0,0.0001438,2]
[348972707,1736905833736,-500.0,0.0001438,2]
[348972708,1736905833746,-500.0,0.0001438,2]
[348972709,1736905833758,-674.67,0.00014383,2]
[348972710,1736905833768,-738.62,0.00014383,2]
[348972711,1736905833778,-1058.0,0.00014434,2]
[348972712,1736905833788,-160.93,0.0001444,2]
[348972713,1736905833799,-150.87,0.00014522,2]
[348972714,1736905833809,-508.34,0.00014584,2]
[348972715,1736905833819,-194.61,0.00014652,2]
[348972716,1736905833830,-500.0,0.00014654,2]
[348972717,1736905833841,-500.0,0.00014654,2]
[348972718,1736905833851,-500.0,0.00014654,2]
[348972719,1736905833861,-578.4485682,0.00014654,2]
[348972720,1736905833872,-500.0,0.00014654,2]
[348972721,1736905833882,-312.25265169,0.00014654,2]
[348972722,1736905833892,-500.0,0.00014654,2]
[348972723,1736905833902,-674.67,0.00014657,2]
[348972724,1736905833913,-738.62,0.00014657,2]
[348972725,1736905833923,-500.0,0.000148,2]
[348972726,1736905833933,-200.0,0.00014837,2]
[348972727,1736905833943,-2496.157,0.00014883,2]
[348972728,1736905833953,-187.62678941,0.00014883,2]
[348972729,1736905833963,-429.96883981,0.00014884,2]
[348972730,1736905833974,-347.59255842,0.000149,2]
[348972731,1736905833984,-500.0,0.00014928,2]
[348972732,1736905833994,-500.0,0.00014928,2]
[348972733,1736905834004,-500.0,0.00014928,2]
[348972734,1736905834015,-341.7447867,0.00014928,2]
[348972735,1736905834025,-674.67,0.00014931,2]
[348972736,1736905834035,-738.62,0.00014931,2]
[348972737,1736905834045,-500.0,0.00014947,2]
[348972738,1736905834056,-500.0,0.00014947,2]
[348972739,1736905834066,-500.0,0.00014947,2]
[348972740,1736905834077,-200.0,0.00014947,2]
[348972741,1736905834090,-200.0,0.00014963,2]
[348972742,1736905834101,-188.29964986,0.00014972,2]
[348972743,1736905834111,-650.0,0.00015,2]
[348972744,1736905834120,-1000.0,0.00015,2]
[348972745,1736905834130,-1000.0,0.00015,2]
[348972746,1736905834142,-1000.0,0.00015,2]
[348972747,1736905834152,-1000.0,0.00015,2]
[348972748,1736905834162,-1000.0,0.00015,2]
[348972749,1736905834172,-1000.0,0.00015,2]
[348972750,1736905834182,-1000.0,0.00015,2]
[348972751,1736905834192,-1000.0,0.00015,2]
[348972752,1736905834202,-1000.0,0.00015,2]
[348972753,1736905834211,-736.1111609,0.00015,2]
[348972754,1736905834256,-263.8888391,0.00015,2]
[348972755,1736905834266,-150.0,0.00015,20]
[348972756,1736905834276,-500.0,0.00015068,2]
[348972757,1736905834287,-300.0,0.00015068,2]
[348972758,1736905834297,-347.5925584,0.00015141,2]
[348972759,1736905834306,-1058.0,0.00015156,2]
[348972760,1736905834316,-216.3154407,0.00015195,2]
[348972761,1736905834326,-519.9619803,0.00015195,2]
[348972762,1736905834338,-500.0,0.00015202,2]
[348972763,1736905834348,-500.0,0.00015202,2]
[348972764,1736905834357,-500.0,0.00015202,2]
[348972765,1736905834367,-500.0,0.00015202,2]
[348972766,1736905834378,-3000.0,0.00015203,2]
[348972767,1736905834388,-674.67,0.00015205,2]
[348972768,1736905834398,-738.62,0.00015205,2]
[348972769,1736905834408,-1224.63310991,0.00015235,2]
[348972770,1736905834417,-1517.64,0.000153,2]
[348972771,1736905834428,-999.0,0.00015342,6]
[348972772,1736905834437,-1900.0,0.00015342,2]
[348972773,1736905834447,-700.0,0.00015342,2]
[348972774,1736905834457,-347.5925584,0.00015383,2]
[348972775,1736905834468,-15935.59998648,0.000154,2]
[348972776,1736905834478,-484.63057229,0.000154,2]
[348972777,1736905834488,-475.2625764,0.00015476,2]
[348972778,1736905834498,-500.0,0.00015476,2]
[348972779,1736905834510,-500.0,0.00015476,2]
[348972780,1736905834519,-674.67,0.00015479,2]
[348972781,1736905834530,-738.62,0.00015479,2]
[348972782,1736905834540,-5000.0,0.000155,3]
[348972783,1736905834550,-643.0,0.000155,2]
[348972784,1736905834560,-347.5925584,0.00015624,2]
[348972785,1736905834571,-151.377,0.0001565,2]
[348972786,1736905834581,-500.0,0.0001575,2]
[348972787,1736905834594,-500.0,0.0001575,2]
[348972788,1736905834604,-674.67,0.00015753,2]
[348972789,1736905834615,-738.62,0.00015753,2]
[348972790,1736905834625,-347.5925584,0.00015866,2]
[348972791,1736905834635,-1058.0,0.00015914,2]
[348972792,1736905834646,-871.6387,0.00015925,2]
[348972793,1736905834656,-7277.81783173,0.00015949,2]
[348972794,1736905834666,-1500.0,0.00016,7]
[348972795,1736905834676,-250.0,0.00016,10]
[348972796,1736905834687,-2085.0,0.00016,2]
[348972797,1736905834697,-2000.0,0.00016,2]
[348972798,1736905834708,-2000.0,0.0001601,2]
[348972799,1736905834718,-2712.3,0.00016015,2]
[348972800,1736905834728,-3685.169918,0.0001602,2]
[348972801,1736905834738,-507.6141502,0.00016024,2]
[348972802,1736905834748,-626.53,0.00016024,2]
[348972803,1736905834758,-500.0,0.00016024,2]
[348972804,1736905834769,-509.00704564,0.00016024,2]
[348972805,1736905834779,-513.80073469,0.00016024,2]
[348972806,1736905834789,-512.74919199,0.00016024,2]
[348972807,1736905834800,-645.83333476,0.00016024,2]
[348972808,1736905835098,-500.0,0.00016024,2]
[348972809,1736905835107,-500.0,0.00016024,2]
[348972810,1736905835117,-500.0,0.00016024,2]
[348972811,1736905835126,-156.16171156,0.00016024,2]
[348972812,1736905835135,-508.57153614,0.00016024,2]
[348972813,1736905835145,-500.0,0.00016024,2]
[348972814,1736905835154,-161.764666,0.00016024,2]
[348972815,1736905835164,-500.0,0.00016024,2]
[348972816,1736905835173,-500.0,0.00016024,2]
[348972817,1736905835183,-500.0,0.00016024,2]
[348972818,1736905835192,-279.331322,0.00016024,2]
[348972819,1736905835201,-500.0,0.00016024,2]
[348972820,1736905835212,-500.0,0.00016024,2]
[348972821,1736905835221,-500.0,0.00016024,2]
[348972822,1736905835230,-372.3137007,0.00016024,2]
[348972823,1736905835239,-529.7675179,0.00016024,2]
[348972824,1736905835248,-176.16230567,0.00016024,2]
[348972825,1736905835259,-500.0,0.00016024,2]
[348972826,1736905835268,-500.0,0.00016024,2]
[348972827,1736905835278,-525.55620321,0.00016024,2]
[348972828,1736905835288,-500.0,0.00016024,2]
[348972829,1736905835298,-313.87160619,0.00016024,2]
[348972830,1736905835309,-500.0,0.00016024,2]
[348972831,1736905835320,-500.0,0.00016024,2]
[348972832,1736905835331,-500.0,0.00016024,2]
[348972833,1736905835341,-517.76709616,0.00016024,2]
[348972834,1736905835350,-510.36735287,0.00016024,2]
[348972835,1736905835359,-500.0,0.00016024,2]
[348972836,1736905835369,-503.37,0.00016024,2]
[348972837,1736905835380,-500.0,0.00016024,2]
[348972838,1736905835389,-512.25324222,0.00016024,2]
[348972839,1736905835397,-512.2144283,0.00016024,2]
[348972840,1736905835408,-500.0,0.00016024,2]
[348972841,1736905835419,-500.0,0.00016024,2]
[348972842,1736905835429,-509.09539224,0.00016024,2]
[348972843,1736905835439,-514.4883505,0.00016024,2]
[348972844,1736905835451,-824.2,0.00016024,2]
[348972845,1736905835460,-500.0,0.00016024,2]
[348972846,1736905835470,-500.0,0.00016024,2]
[348972847,1736905835480,-500.0,0.00016024,2]
[348972848,1736905835490,-519.4545073,0.00016024,2]
[348972849,1736905835499,-500.0,0.00016024,2]
[348972850,1736905835509,-530.4894206,0.00016024,2]
[348972851,1736905835518,-1051.98,0.00016024,2]
[348972852,1736905835528,-500.0,0.00016024,2]
[348972853,1736905835538,-500.0,0.00016024,2]
[348972854,1736905835548,-75970.26264531,0.00016025,2]
[348972855,1736905835557,-674.67,0.00016027,2]
[348972856,1736905835568,-738.62,0.00016027,2]
[348972857,1736905835577,-263.25,0.00016096,2]
[348972858,1736905835588,-347.5925584,0.00016107,2]
[348972859,1736905835597,-508.34,0.00016204,2]
[348972860,1736905835605,-152.0,0.00016258,3]
[348972861,1736905835615,-194.61,0.0001628,2]
[348972862,1736905835624,-500.0,0.00016298,2]
[348972863,1736905835633,-268.40827109,0.00016298,2]
[348972864,1736905835642,-500.0,0.00016298,2]
[348972865,1736905835651,-500.0,0.00016298,2]
[348972866,1736905835660,-500.0,0.00016298,2]
[348972867,1736905835669,-161.764666,0.00016298,2]
[348972868,1736905835678,-237.83521573,0.00016298,2]
[348972869,1736905835688,-500.0,0.00016298,2]
[348972870,1736905835697,-500.0,0.00016298,2]
[348972871,1736905835707,-279.331322,0.00016298,2]
[348972872,1736905835715,-500.0,0.00016298,2]
[348972873,1736905835725,-500.0,0.00016298,2]
[348972874,1736905835734,-500.0,0.00016298,2]
[348972875,1736905835743,-500.0,0.00016298,2]
[348972876,1736905835752,-500.0,0.00016298,2]
[348972877,1736905835762,-500.0,0.00016298,2]
[348972878,1736905835771,-500.0,0.00016298,2]
[348972879,1736905835781,-500.0,0.00016298,2]
[348972880,1736905835790,-308.46271795,0.00016298,2]
[348972881,1736905835799,-500.0,0.00016298,2]
[348972882,1736905835809,-503.37,0.00016298,2]
[348972883,1736905835818,-500.0,0.00016298,2]
[348972884,1736905835827,-263.27985195,0.00016298,2]
[348972885,1736905835838,-500.0,0.00016298,2]
[348972886,1736905835847,-824.2,0.00016298,2]
[348972887,1736905835857,-500.0,0.00016298,2]
[348972888,1736905835866,-500.0,0.00016298,2]
[348972889,1736905835875,-500.0,0.00016298,2]
[348972890,1736905835885,-500.0,0.00016298,2]
[348972891,1736905835894,-1051.98,0.00016298,2]
[348972892,1736905835903,-500.0,0.00016298,2]
[348972893,1736905835912,-500.0,0.00016298,2]
[348972894,1736905835922,-674.8726539,0.00016301,2]
[348972895,1736905835932,-738.63069002,0.00016301,2]
[348972896,1736905835941,-200.08524234,0.00016338,2]
[348972897,1736905835955,-556.78145414,0.00016338,2]
[348972898,1736905835970,-2.52020352,0.00016338,2]
[348972899,1736905835979,-200.0,0.0001634,2]
[348972900,1736905835989,-347.5925584,0.00016348,2]
[348972901,1736905835999,-500.0,0.00016437,2]
[348972902,1736905836008,-500.0,0.00016437,2]
[348972903,1736905836017,-500.0,0.00016437,2]
[348972904,1736905836026,-782.64,0.00016437,2]
[348972905,1736905836036,-884.62,0.00016437,2]
[348972906,1736905836046,-500.0,0.00016437,2]
[348972907,1736905836056,-558.71,0.00016438,2]
[348972908,1736905836065,-558.71,0.00016438,2]
[348972909,1736905836075,-558.71,0.00016438,2]
[348972910,1736905836085,-558.71,0.00016438,2]
[348972911,1736905836100,-558.71,0.00016438,2]
[348972912,1736905836109,-558.71,0.00016438,2]
[348972913,1736905836119,-558.71,0.00016438,2]
[348972914,1736905836128,-384.63969227,0.00016438,2]
[348972915,1736905836141,-174.07030773,0.00016438,2]
[348972916,1736905836151,-558.71,0.00016438,2]
[348972917,1736905836160,-558.71,0.00016438,2]
[348972918,1736905836173,-558.71,0.00016438,2]
[348972919,1736905836182,-558.71,0.00016438,2]
[348972920,1736905836191,-558.71,0.00016438,2]
[348972921,1736905836201,-558.71,0.00016438,2]
[348972922,1736905836210,-558.71,0.00016438,2]
[348972923,1736905836220,-558.71,0.00016438,2]
[348972924,1736905836229,-558.71,0.00016438,2]
[348972925,1736905836239,-558.71,0.00016438,2]
[348972926,1736905836248,-428.67513454,0.00016438,2]
[348972927,1736905836260,-130.03486546,0.00016438,2]
[348972928,1736905836270,-558.71,0.00016438,2]
[348972929,1736905836279,-73.43055671,0.00016438,2]
[348972930,1736905836300,-485.27944329,0.00016438,2]
[348972931,1736905836310,-558.71,0.00016438,2]
[348972932,1736905836321,-558.71,0.00016438,2]
[348972933,1736905836330,-558.93975126,0.00016438,2]
[348972934,1736905836340,-402.61,0.00016438,2]
[348972935,1736905836350,-402.61,0.00016438,2]
[348972936,1736905836359,-1025.65,0.00016438,2]
[348972937,1736905836369,-1025.65,0.00016438,2]
[348972938,1736905836378,-300.0,0.00016438,2]
[348972939,1736905836387,-150.0,0.00016438,2]
[348972940,1736905836397,-2712.3,0.0001649,2]
[348972941,1736905836407,-7462.62,0.000165,2]
[348972942,1736905836416,-152.0,0.00016537,4]
[348972943,1736905836425,-500.0,0.00016571,2]
[348972944,1736905836434,-500.0,0.00016571,2]
[348972945,1736905836444,-162.50397992,0.00016572,2]
[348972946,1736905836453,-500.0,0.00016572,2]
[348972947,1736905836463,-500.0,0.00016572,2]
[348972948,1736905836472,-161.764666,0.00016572,2]
[348972949,1736905836482,-500.0,0.00016572,2]
[348972950,1736905836491,-500.0,0.00016572,2]
[348972951,1736905836501,-500.0,0.00016572,2]
[348972952,1736905836510,-279.331322,0.00016572,2]
[348972953,1736905836520,-500.0,0.00016572,2]
[348972954,1736905836530,-402.61,0.00016572,2]
[348972955,1736905836543,-500.0,0.00016572,2]
[348972956,1736905836553,-500.0,0.00016572,2]
[348972957,1736905836563,-500.0,0.00016572,2]
[348972958,1736905836572,-500.0,0.00016572,2]
[348972959,1736905836582,-500.0,0.00016572,2]
[348972960,1736905836595,-500.0,0.00016572,2]
[348972961,1736905836604,-500.0,0.00016572,2]
[348972962,1736905836614,-500.0,0.00016572,2]
[348972963,1736905836623,-503.37,0.00016572,2]
[348972964,1736905836633,-500.0,0.00016572,2]
[348972965,1736905836642,-379.61192716,0.00016572,2]
[348972966,1736905836652,-824.2,0.00016572,2]